bitfinex/quotes_BTCUSD_20250822
["timestamp","ask_amount","ask_price","bid_price","bid_amount"]
[1755863491465,0.52014904,112600.0,112590.0,0.18292566]
[1755863492237,0.53305009,112600.0,112590.0,0.18292566]
[1755863492752,0.53405009,112600.0,112590.0,0.18292566]
[1755863496106,0.52014904,112600.0,112590.0,0.18292566]
[1755863496324,0.17863427,112600.0,112590.0,0.18292566]
[1755863496713,0.52014904,112600.0,112590.0,0.18292566]
[1755863497476,0.17863427,112600.0,112590.0,0.18292566]
[1755863497677,0.52014904,112600.0,112590.0,0.18292566]
[1755863497879,0.17863427,112600.0,112590.0,0.18292566]
[1755863498498,0.52014904,112600.0,112590.0,0.18292566]
[1755863499263,0.19253532,112600.0,112590.0,0.18292566]
[1755863499454,0.53405009,112600.0,112590.0,0.18292566]
[1755863500542,0.69418432,112610.0,112590.0,0.18292566]
[1755863500794,0.52114914,112600.0,112590.0,0.18292566]
[1755863500994,0.53305013,112600.0,112590.0,0.18292566]
[1755863502286,0.19153536,112600.0,112590.0,0.18292566]
[1755863502715,0.53405013,112600.0,112590.0,0.18292566]
[1755863503155,0.53409859,112600.0,112590.0,0.18292566]
[1755863505212,0.53409859,112600.0,112590.0,0.33308566]
[1755863505572,0.53409859,112600.0,112590.0,0.00529]
[1755863505776,0.53409859,112600.0,112590.0,0.15336]
[1755863505950,0.53409859,112600.0,112590.0,0.15545]
[1755863506806,0.53409859,112600.0,112590.0,0.33308566]
[1755863507737,0.17868272,112600.0,112590.0,0.33308566]
[1755863507939,0.52019749,112600.0,112590.0,0.33308566]
[1755863509374,0.17868272,112600.0,112590.0,0.33308566]
[1755863509584,0.52019749,112600.0,112590.0,0.33308566]
[1755863510955,0.53409857,112600.0,112590.0,0.33308566]
[1755863512232,0.1925838,112600.0,112590.0,0.33308566]
[1755863512642,0.53409857,112600.0,112590.0,0.33308566]
[1755863513450,0.1925838,112600.0,112590.0,0.33308566]
[1755863513650,0.53409857,112600.0,112590.0,0.33308566]
[1755863515970,0.53409857,112600.0,112590.0,0.33304566]
[1755863516315,0.53409857,112600.0,112590.0,0.18296566]
[1755863516480,0.53409857,112600.0,112590.0,0.33308566]
[1755863517359,0.1925838,112600.0,112590.0,0.33308566]
[1755863517567,0.53409857,112600.0,112590.0,0.33308566]
[1755863517796,0.53409857,112600.0,112590.0,0.40407569]
[1755863519101,0.53409857,112600.0,112590.0,0.25395569]
[1755863519304,0.52019749,112600.0,112590.0,0.40407569]
[1755863519504,0.52019749,112600.0,112590.0,0.25395569]
[1755863519743,0.52019749,112600.0,112590.0,0.40407569]
[1755863521216,0.17868272,112600.0,112590.0,0.40407569]
[1755863521653,0.52019749,112600.0,112590.0,0.40407569]
[1755863521829,0.17868272,112600.0,112590.0,0.40407569]
[1755863522031,0.52019749,112600.0,112590.0,0.40407569]
[1755863522656,0.53409857,112600.0,112590.0,0.40407569]
[1755863523003,0.1925838,112600.0,112590.0,0.40407569]
[1755863523204,0.53409857,112600.0,112590.0,0.40407569]
[1755863523410,0.01494954,112600.0,112590.0,0.40407569]
[1755863523722,0.53608431,112600.0,112590.0,0.40407569]
[1755863523943,0.5340842,112600.0,112590.0,0.40407569]
[1755863524144,0.19256943,112600.0,112590.0,0.74559046]
[1755863524446,0.01494954,112600.0,112590.0,0.83247521]
[1755863526026,0.00104846,112600.0,112590.0,0.83247521]
[1755863529232,0.0149492,112600.0,112590.0,0.83247521]
[1755863530957,0.0149492,112600.0,112590.0,0.85918121]
[1755863531409,0.0149492,112600.0,112590.0,0.85914121]
[1755863531821,0.49674061,112620.0,112600.0,0.17760866]
[1755863531969,0.19150453,112610.0,112600.0,0.77197773]
[1755863532171,0.01390041,112610.0,112600.0,0.77398773]
[1755863532608,0.01390041,112610.0,112600.0,0.77709773]
[1755863533430,0.01590041,112610.0,112600.0,0.77709773]
[1755863535188,0.01690041,112610.0,112600.0,0.62701773]
[1755863535398,0.01690041,112610.0,112600.0,0.77709773]
[1755863535983,0.003,112610.0,112600.0,0.77709773]
[1755863539266,0.0168997,112610.0,112600.0,0.62701773]
[1755863539468,0.0168997,112610.0,112600.0,0.77709773]
[1755863539619,0.19450382,112610.0,112600.0,0.77709773]
[1755863540240,0.0168997,112610.0,112600.0,0.77709773]
[1755863543390,0.34,112620.0,112600.0,0.43558296]
[1755863543586,0.51761403,112620.0,112610.0,0.15008]
[1755863543825,0.87302858,112620.0,112610.0,0.1986373]
[1755863544675,0.53351381,112620.0,112610.0,0.1986373]
[1755863544906,0.87502858,112620.0,112610.0,0.1986373]
[1755863545338,0.87302858,112620.0,112610.0,0.1986373]
[1755863545571,0.87502858,112620.0,112610.0,0.1986373]
[1755863545791,0.53502858,112620.0,112610.0,0.1986373]
[1755863546004,0.53702858,112620.0,112610.0,0.1986373]
[1755863546438,0.19551381,112620.0,112610.0,0.37624142]
[1755863546645,0.19551381,112620.0,112610.0,0.71775619]
[1755863546850,0.18161403,112620.0,112610.0,0.37624142]
[1755863549837,0.18161403,112620.0,112610.0,0.0485573]
[1755863550219,0.53702821,112620.0,112610.0,0.1985973]
[1755863550416,0.53702821,112620.0,112610.0,0.1932873]
[1755863550813,0.53302821,112620.0,112610.0,0.0432473]
[1755863551017,0.89961508,112620.0,112610.0,0.15004]
[1755863551224,0.17760412,112610.0,112600.0,0.32325234]
[1755863551422,0.51911889,112610.0,112600.0,0.32325234]
[1755863551644,0.51911889,112610.0,112600.0,0.23955759]
[1755863553234,0.51911889,112610.0,112600.0,0.22047804]
[1755863554220,0.54582589,112610.0,112600.0,0.22047804]
[1755863554965,0.20431112,112610.0,112600.0,0.39809793]
[1755863555178,0.54582589,112610.0,112600.0,0.40128793]
[1755863555595,0.54582589,112610.0,112600.0,0.40340793]
[1755863555747,0.54582589,112610.0,112600.0,0.40128793]
[1755863556555,0.20431112,112610.0,112600.0,0.40340793]
[1755863556788,0.54582589,112610.0,112600.0,0.40340793]
[1755863557040,0.20431112,112610.0,112600.0,0.40340793]
[1755863557241,0.54582589,112610.0,112600.0,0.40340793]
[1755863557447,0.54582589,112610.0,112600.0,0.40128793]
[1755863558416,0.54582589,112610.0,112600.0,0.25124793]
[1755863558616,0.54582589,112610.0,112600.0,0.40128793]
[1755863559420,0.54582589,112610.0,112600.0,0.25124793]
[1755863559623,0.54582589,112610.0,112600.0,0.40124793]
[1755863560393,0.54582589,112610.0,112600.0,0.25124793]
[1755863560591,0.54582589,112610.0,112600.0,0.40124793]
[1755863561011,0.54582589,112610.0,112600.0,0.25124793]
[1755863561215,0.54582589,112610.0,112600.0,0.40124793]
[1755863563073,0.54582589,112610.0,112600.0,0.40336793]
[1755863563327,0.55972599,112610.0,112600.0,0.40336793]
[1755863563700,0.21821122,112610.0,112600.0,0.40336793]
[1755863563907,0.55972599,112610.0,112600.0,0.40336793]
[1755863565175,0.55972599,112610.0,112600.0,0.25124793]
[1755863565437,0.55972599,112610.0,112600.0,0.40124793]
[1755863565638,0.55972599,112610.0,112600.0,0.25124793]
[1755863565820,0.55972599,112610.0,112600.0,0.40124793]
[1755863566159,0.54582589,112610.0,112600.0,0.40124793]
[1755863566364,0.54582589,112610.0,112600.0,0.22043804]
[1755863567017,0.54582589,112610.0,112600.0,0.39805793]
[1755863567417,0.54582589,112610.0,112600.0,0.22043804]
[1755863567777,0.34151477,112610.0,112600.0,0.39805793]
[1755863567957,0.51911889,112610.0,112600.0,0.39805793]
[1755863568153,0.51911889,112610.0,112600.0,0.22043804]
[1755863568328,0.51911889,112610.0,112600.0,0.39805793]
[1755863568537,0.51911889,112610.0,112600.0,0.40123793]
[1755863568937,0.17760412,112610.0,112600.0,0.40334793]
[1755863569193,0.51911889,112610.0,112600.0,0.40334793]
[1755863569327,0.5330191,112610.0,112600.0,0.40334793]
[1755863572080,0.5330191,112610.0,112600.0,0.40123793]
[1755863572696,0.5330191,112610.0,112600.0,0.22361804]
[1755863573889,0.5330191,112610.0,112600.0,0.40123793]
[1755863574792,0.5330191,112610.0,112600.0,0.22361804]
[1755863574931,0.5330191,112610.0,112600.0,0.40123793]
[1755863575488,0.5330191,112610.0,112600.0,0.22361804]
[1755863575719,0.5330191,112610.0,112600.0,0.40123793]
[1755863575891,0.5330191,112610.0,112600.0,0.22361804]
[1755863576117,0.5330191,112610.0,112600.0,0.40123793]
[1755863576416,0.5330191,112610.0,112600.0,0.22361804]
[1755863577905,0.51911889,112610.0,112600.0,0.22361804]
[1755863578420,0.51911889,112610.0,112600.0,0.07043804]
[1755863578631,0.51911889,112610.0,112600.0,0.22039804]
[1755863579307,0.54582689,112610.0,112600.0,0.22039804]
[1755863579551,0.54582689,112610.0,112600.0,0.07043804]
[1755863579799,0.54682689,112610.0,112600.0,0.22039804]
[1755863580281,0.54782689,112610.0,112590.0,0.00322]
[1755863580520,0.86264954,112600.0,112590.0,0.15]
[1755863580729,0.86064943,112600.0,112590.0,0.15318]
[1755863580928,0.87455087,112600.0,112590.0,0.00322]
[1755863581136,0.87455087,112600.0,112590.0,0.15318]
[1755863581348,0.5330361,112600.0,112590.0,0.15]
[1755863581551,0.5330361,112600.0,112590.0,0.15318]
[1755863581760,0.87455087,112600.0,112590.0,0.00322]
[1755863581995,0.87455087,112600.0,112590.0,0.15]
[1755863582203,0.90126087,112600.0,112590.0,0.15]
[1755863582410,0.87455087,112600.0,112590.0,0.15]
[1755863583100,0.87455087,112600.0,112590.0,4e-05]
[1755863583301,0.87455087,112600.0,112590.0,0.15]
[1755863583302,0.90126187,112600.0,112590.0,0.15]
[1755863584164,1.05122187,112600.0,112590.0,4e-05]
[1755863584290,1.05122187,112600.0,112590.0,0.15]
[1755863585877,1.05122187,112600.0,112590.0,4e-05]
[1755863586065,1.03732043,112600.0,112590.0,4e-05]
[1755863588017,1.13982997,112600.0,112590.0,4e-05]
[1755863588274,1.16748986,112600.0,112590.0,4e-05]
[1755863588485,1.31844986,112600.0,112590.0,4e-05]
[1755863589026,6.31844986,112600.0,112590.0,4e-05]
[1755863589383,6.33235276,112600.0,112590.0,4e-05]
[1755863589585,6.33335276,112600.0,112590.0,4e-05]
[1755863590139,6.33235276,112600.0,112590.0,4e-05]
[1755863590556,6.33335276,112600.0,112590.0,4e-05]
[1755863590733,6.33535276,112600.0,112590.0,4e-05]
[1755863593249,6.39522333,112600.0,112590.0,4e-05]
[1755863595026,6.79596211,112600.0,112590.0,4e-05]
[1755863595223,7.9438372,112600.0,112590.0,4e-05]
[1755863595426,7.9923708,112600.0,112590.0,4e-05]
[1755863595671,0.51766722,112570.0,112560.0,4e-05]
[1755863595869,6.41123502,112570.0,112560.0,4e-05]
[1755863596068,6.51117168,112570.0,112560.0,4e-05]
[1755863596418,6.52789168,112570.0,112560.0,4e-05]
[1755863597120,6.52889168,112570.0,112560.0,8.845e-05]
[1755863597314,5.84586214,112570.0,112560.0,8.845e-05]
[1755863597612,6.49727502,112570.0,112560.0,8.845e-05]
[1755863597820,6.49627502,112570.0,112560.0,8.845e-05]
[1755863598019,6.49827502,112570.0,112560.0,8.845e-05]
[1755863598223,5.81524548,112570.0,112560.0,8.845e-05]
[1755863598467,5.82144959,112570.0,112560.0,8.845e-05]
[1755863598669,5.9528378,112570.0,112560.0,8.845e-05]
[1755863598893,6.10247369,112570.0,112560.0,8.845e-05]
[1755863599099,6.10279369,112570.0,112560.0,8.845e-05]
[1755863599404,6.10899525,112570.0,112560.0,8.845e-05]
[1755863599770,6.12290229,112570.0,112560.0,8.845e-05]
[1755863601003,6.1710508,112570.0,112560.0,8.845e-05]
[1755863601627,6.48136061,112570.0,112560.0,8.845e-05]
[1755863602246,6.47515905,112570.0,112560.0,8.845e-05]
[1755863602463,6.48134792,112570.0,112560.0,8.845e-05]
[1755863602661,6.56821757,112570.0,112560.0,8.845e-05]
[1755863602810,0.17768301,112560.0,112550.0,0.00305]
[1755863603016,6.07199143,112560.0,112550.0,0.00048505]
[1755863603247,6.07148185,112560.0,112550.0,0.00048505]
[1755863603987,6.07148185,112560.0,112550.0,0.00248505]
[1755863604217,5.35601225,112560.0,112550.0,0.00248505]
[1755863604366,5.35601225,112560.0,112550.0,0.00553505]
[1755863604537,5.35601225,112560.0,112550.0,0.00248505]
[1755863604742,6.03986519,112560.0,112550.0,0.00248505]
[1755863605395,5.35600243,112560.0,112550.0,0.00248505]
[1755863605632,5.88373537,112560.0,112550.0,0.00553505]
[1755863605831,5.35580243,112560.0,112550.0,0.00766505]
[1755863606014,6.03965537,112560.0,112550.0,0.00766505]
[1755863606214,6.06638037,112560.0,112550.0,0.00766505]
[1755863607134,6.06626037,112560.0,112550.0,0.00766505]
[1755863607960,5.22660743,112560.0,112550.0,0.00766505]
[1755863608150,5.7243339,112560.0,112550.0,0.00766505]
[1755863608384,5.72433266,112560.0,112550.0,0.00766505]
[1755863609519,5.56853266,112560.0,112550.0,0.00766505]
[1755863609711,5.72425266,112560.0,112550.0,0.00766505]
[1755863610786,5.38232619,112560.0,112550.0,0.00766505]
[1755863610972,0.72425266,112560.0,112550.0,0.00766505]
[1755863611173,1.06617913,112560.0,112550.0,0.00766505]
[1755863611381,0.38216715,112560.0,112550.0,0.00766505]
[1755863611539,0.75571447,112560.0,112550.0,0.00766505]
[1755863611743,1.09764094,112560.0,112550.0,0.00766505]
[1755863611984,0.75571447,112560.0,112550.0,0.00766505]
[1755863612188,0.75571723,112560.0,112550.0,0.00766505]
[1755863612405,0.75571834,112560.0,112550.0,0.00766505]
[1755863612566,1.09764481,112560.0,112550.0,0.00766505]
[1755863613978,0.60015834,112560.0,112550.0,0.00766505]
[1755863614189,0.72398168,112560.0,112550.0,0.00766505]
[1755863614588,0.72399276,112560.0,112550.0,0.00766505]
[1755863615753,0.73789997,112560.0,112550.0,0.00766505]
[1755863616201,0.76951663,112560.0,112550.0,0.00766505]
[1755863616414,0.75560942,112560.0,112550.0,0.00766505]
[1755863616562,0.41368295,112560.0,112550.0,0.00766505]
[1755863616768,0.75560942,112560.0,112550.0,0.00766505]
[1755863617342,0.72399276,112560.0,112550.0,0.00766505]
[1755863618156,0.38206629,112560.0,112550.0,0.00766505]
[1755863618387,0.72379276,112560.0,112550.0,0.00766505]
[1755863620373,1.06379276,112560.0,112550.0,0.00766505]
[1755863620754,1.06384319,112560.0,112550.0,0.00766505]
[1755863621366,1.06384357,112560.0,112550.0,0.00766505]
[1755863621570,1.07775065,112560.0,112550.0,0.00766505]
[1755863623009,0.73582418,112560.0,112550.0,0.00766505]
[1755863623214,1.07775065,112560.0,112550.0,0.00766505]
[1755863623414,1.07776769,112560.0,112550.0,0.00766505]
[1755863625566,1.08607431,112560.0,112550.0,0.00766505]
[1755863627067,1.42800078,112560.0,112550.0,0.00766505]
[1755863627482,1.44571036,112560.0,112550.0,0.00766505]
[1755863628145,1.44571036,112560.0,112550.0,0.00248505]
[1755863630122,1.42291465,112560.0,112550.0,0.00248505]
[1755863630353,1.4457661,112560.0,112550.0,0.00248505]
[1755863630570,1.45967367,112560.0,112550.0,0.00248505]
[1755863630793,1.45967611,112560.0,112550.0,0.00248505]
[1755863631024,1.4430567,112560.0,112550.0,0.00248505]
[1755863631616,1.46220202,112560.0,112550.0,0.00248505]
[1755863632170,1.51760125,112560.0,112550.0,0.00248505]
[1755863633031,0.67850831,112560.0,112550.0,0.00248505]
[1755863633241,1.51676125,112560.0,112550.0,0.00248505]
[1755863633448,5.83290831,112560.0,112550.0,0.00248505]
[1755863633676,6.51676125,112560.0,112550.0,0.00248505]
[1755863634305,6.47682796,112560.0,112550.0,0.00248505]
[1755863634512,6.50355196,112560.0,112550.0,0.00248505]
[1755863635278,6.48440664,112560.0,112550.0,0.00248505]
[1755863637282,6.48440664,112560.0,112550.0,0.00048505]
[1755863637713,6.48640664,112560.0,112550.0,0.00048505]
[1755863637926,6.56838662,112560.0,112550.0,0.00048505]
[1755863639067,6.55447905,112560.0,112550.0,0.00048505]
[1755863639295,6.54601174,112560.0,112550.0,0.00048505]
[1755863639507,6.55432367,112560.0,112550.0,0.00048505]
[1755863639950,6.55432373,112560.0,112550.0,0.00048505]
[1755863642124,6.56823196,112560.0,112550.0,0.00048505]
[1755863642617,6.33205198,112560.0,112550.0,0.00349505]
[1755863642963,6.48605198,112560.0,112550.0,0.00549505]
[1755863643324,6.48613198,112560.0,112550.0,0.00549505]
[1755863643559,6.30043532,112560.0,112550.0,0.00549505]
[1755863643777,6.11254885,112560.0,112550.0,0.00549505]
[1755863644423,6.11254648,112560.0,112550.0,0.00549505]
[1755863645046,5.77062001,112560.0,112550.0,0.00549505]
[1755863645316,6.11254648,112560.0,112550.0,0.00549505]
[1755863645526,6.11316268,112560.0,112550.0,0.00549505]
[1755863646168,6.38508549,112560.0,112550.0,0.00549505]
[1755863646363,6.37677497,112560.0,112550.0,0.00549505]
[1755863646825,1.0348485,112560.0,112550.0,0.00549505]
[1755863647230,1.22281497,112560.0,112550.0,0.00549505]
[1755863647639,1.00804347,112560.0,112550.0,0.00553505]
[1755863648252,0.85416347,112560.0,112550.0,0.00553505]
[1755863648464,1.00800347,112560.0,112550.0,0.00553505]
[1755863650052,1.01567926,112560.0,112550.0,0.00553505]
[1755863650478,0.34739066,112560.0,112550.0,0.18323385]
[1755863650846,0.68931713,112560.0,112550.0,0.00553505]
[1755863651786,0.68731713,112560.0,112550.0,0.00553505]
[1755863652235,0.68831713,112560.0,112550.0,0.00511459]
[1755863652455,0.68678579,112560.0,112550.0,0.00511459]
[1755863653445,0.68578579,112560.0,112550.0,0.00511459]
[1755863654301,0.34385932,112560.0,112550.0,0.00511459]
[1755863654501,0.68578579,112560.0,112550.0,0.00511459]
[1755863657003,0.34385932,112560.0,112550.0,0.00511459]
[1755863657143,0.68578579,112560.0,112550.0,0.00511459]
[1755863657779,0.33112301,112560.0,112550.0,0.00511459]
[1755863658015,0.67304948,112560.0,112550.0,0.0071522]
[1755863658432,0.33112301,112560.0,112550.0,0.0071522]
[1755863658657,0.33132301,112560.0,112550.0,0.184851]
[1755863658871,0.33132301,112560.0,112550.0,0.18262977]
[1755863659753,0.20438522,112570.0,112560.0,0.17768301]
[1755863659971,0.33130722,112570.0,112560.0,0.17967301]
[1755863660223,0.33130722,112570.0,112560.0,0.18281301]
[1755863660660,0.67323369,112570.0,112560.0,0.18281301]
[1755863661218,0.67323369,112570.0,112560.0,0.23022817]
[1755863661428,0.68713927,112570.0,112560.0,0.23022817]
[1755863661638,0.68813927,112570.0,112560.0,0.23022817]
[1755863661878,0.68813927,112570.0,112560.0,0.22981155]
[1755863662283,0.68813927,112570.0,112560.0,0.22939486]
[1755863662739,0.68813927,112570.0,112560.0,0.23039486]
[1755863663141,0.3452128,112570.0,112560.0,0.23039486]
[1755863663371,0.3452128,112570.0,112560.0,0.23139486]
[1755863663965,0.3452128,112570.0,112560.0,0.23143486]
[1755863665984,0.33130722,112570.0,112560.0,0.23143486]
[1755863666202,0.67323369,112570.0,112560.0,0.23143486]
[1755863666397,0.51959369,112570.0,112560.0,0.23143486]
[1755863666632,0.67295369,112570.0,112560.0,0.23143486]
[1755863669226,0.68685893,112570.0,112560.0,0.23143486]
[1755863670369,0.68685893,112570.0,112560.0,0.22564812]
[1755863670724,0.68685893,112570.0,112560.0,0.05458516]
[1755863670930,0.68685893,112570.0,112560.0,0.04657516]
[1755863671290,0.68889893,112570.0,112560.0,0.04657516]
[1755863672330,0.68889893,112570.0,112560.0,0.03879842]
[1755863672996,0.68889893,112570.0,112560.0,0.04078842]
[1755863674203,0.68889893,112570.0,112560.0,0.03879842]
[1755863674476,0.68889893,112570.0,112560.0,0.03301168]
[1755863675850,0.69196893,112570.0,112560.0,0.03301168]
[1755863676297,0.72572216,112570.0,112560.0,0.00204]
[1755863676486,0.69184737,112570.0,112560.0,0.00204]
[1755863677369,0.69136737,112570.0,112560.0,0.00204]
[1755863677510,0.69136737,112570.0,112560.0,0.00104]
[1755863678072,0.68829737,112570.0,112560.0,0.00104]
[1755863678353,0.69136737,112570.0,112560.0,0.00104]
[1755863678553,0.69136065,112570.0,112560.0,0.00104]
[1755863678751,0.67745541,112570.0,112560.0,0.00104]
[1755863678951,0.67745541,112570.0,112560.0,1e-08]
[1755863679173,0.17768301,112560.0,112550.0,0.11537784]
[1755863679380,0.17768301,112560.0,112550.0,0.29506664]
[1755863679798,0.67541541,112570.0,112550.0,0.29506664]
[1755863680003,0.17768301,112560.0,112550.0,0.29506664]
[1755863680414,0.67541541,112570.0,112550.0,0.29606664]
[1755863680616,0.67541541,112570.0,112550.0,0.29706664]
[1755863680823,0.17768301,112560.0,112550.0,0.29706664]
[1755863681161,0.51946541,112570.0,112550.0,0.29706664]
[1755863681376,0.17768301,112560.0,112550.0,0.29706664]
[1755863681794,0.19158884,112560.0,112550.0,0.29672918]
[1755863682197,0.19158884,112560.0,112550.0,0.29539166]
[1755863682638,0.19158884,112560.0,112550.0,0.29439166]
[1755863683315,0.19158884,112560.0,112550.0,0.44703166]
[1755863683727,0.19158884,112560.0,112550.0,0.44803166]
[1755863684679,0.19362884,112560.0,112550.0,0.26707286]
[1755863684881,0.19362884,112560.0,112550.0,0.44477166]
[1755863685273,0.19158884,112560.0,112550.0,0.44791166]
[1755863685493,0.01390583,112560.0,112550.0,0.44791166]
[1755863685654,0.19158884,112560.0,112550.0,0.44791166]
[1755863685882,0.01390583,112560.0,112550.0,0.44791166]
[1755863686090,0.17768301,112560.0,112550.0,0.44791166]
[1755863688773,0.17768301,112560.0,112550.0,0.27021286]
[1755863688984,0.17768301,112560.0,112550.0,0.44791166]
[1755863690675,0.19158887,112560.0,112550.0,0.44791166]
[1755863692745,0.01390586,112560.0,112550.0,0.44791166]
[1755863693155,0.01390586,112560.0,112550.0,0.78970985]
[1755863693971,0.01390586,112560.0,112550.0,0.78870985]
[1755863694169,0.01390586,112560.0,112550.0,0.80815887]
[1755863695395,0.5021293,112580.0,112560.0,0.17766731]
[1755863695593,0.67980575,112580.0,112570.0,0.08688475]
[1755863695861,0.18763756,112580.0,112570.0,0.23916475]
[1755863695982,0.52943575,112580.0,112570.0,0.23916475]
[1755863696601,0.53043575,112580.0,112570.0,0.23916475]
[1755863697206,0.53143575,112580.0,112570.0,0.23916475]
[1755863697404,0.18963756,112580.0,112570.0,0.23916475]
[1755863697544,0.53143575,112580.0,112570.0,0.23916475]
[1755863698105,0.53448575,112580.0,112570.0,0.28353078]
[1755863698307,0.53448575,112580.0,112570.0,0.13125078]
[1755863698602,0.18963756,112580.0,112570.0,0.13651078]
[1755863698762,0.53133061,112580.0,112570.0,0.13651078]
[1755863699145,0.53133061,112580.0,112570.0,0.13335078]
[1755863699525,0.53133061,112580.0,112570.0,0.311018]
[1755863699664,0.52134449,112580.0,112570.0,0.314178]
[1755863700005,0.17965144,112580.0,112570.0,0.314178]
[1755863700243,0.002,112580.0,112570.0,0.314178]
[1755863700416,0.52134449,112580.0,112570.0,0.314178]
[1755863701470,0.52338449,112580.0,112570.0,0.314178]
[1755863701847,0.52338449,112580.0,112570.0,0.466338]
[1755863702057,0.53528874,112580.0,112570.0,0.466338]
[1755863702315,0.53528874,112580.0,112570.0,0.467338]
[1755863703231,0.53528874,112580.0,112570.0,0.13751078]
[1755863703391,0.53528874,112580.0,112570.0,0.28959078]
[1755863703556,0.53528874,112580.0,112570.0,0.29059078]
[1755863703755,0.53528874,112580.0,112570.0,0.13851078]
[1755863704089,0.53528874,112580.0,112570.0,0.28739078]
[1755863704808,0.53528874,112580.0,112570.0,0.13535078]
[1755863705011,0.53528874,112580.0,112570.0,0.28735078]
[1755863705194,0.57249587,112580.0,112570.0,0.28537078]
[1755863705418,0.88005179,112580.0,112570.0,0.28537078]
[1755863705620,0.53835874,112580.0,112570.0,0.24070027]
[1755863705821,0.88005179,112580.0,112570.0,0.24070027]
[1755863706427,0.88005179,112580.0,112570.0,0.24062027]
[1755863706832,0.88005179,112580.0,112570.0,0.08858027]
[1755863708765,0.88005179,112580.0,112570.0,0.002]
[1755863710937,0.91418892,112580.0,112570.0,0.002]
[1755863711127,0.88005179,112580.0,112570.0,0.002]
[1755863712300,0.19666569,112580.0,112570.0,0.002]
[1755863712506,1.03205179,112580.0,112570.0,0.002]
[1755863712706,1.03197179,112580.0,112570.0,0.002]
[1755863713104,1.02890179,112580.0,112570.0,0.0041]
[1755863713476,0.19359569,112580.0,112570.0,0.00241453]
[1755863713675,0.87698179,112580.0,112570.0,0.00241453]
[1755863714890,0.87698179,112580.0,112570.0,0.00031453]
[1755863715087,0.88005179,112580.0,112570.0,0.00031453]
[1755863719682,0.19666569,112580.0,112570.0,0.00031453]
[1755863719919,0.34531569,112580.0,112570.0,0.00234453]
[1755863720125,0.53528874,112580.0,112570.0,0.00234453]
[1755863720348,0.53324874,112580.0,112570.0,0.00536453]
[1755863720756,0.53526874,112580.0,112570.0,0.00536453]
[1755863721211,0.19357569,112580.0,112570.0,0.18303175]
[1755863721415,0.53324874,112580.0,112570.0,0.18303175]
[1755863722046,0.19155569,112580.0,112570.0,0.18303175]
[1755863722491,0.53324874,112580.0,112570.0,0.20974475]
[1755863723113,0.19155569,112580.0,112570.0,0.20974475]
[1755863723316,0.53324874,112580.0,112570.0,0.20974475]
[1755863724681,0.19155569,112580.0,112570.0,0.20974475]
[1755863724983,0.53324874,112580.0,112570.0,0.20974475]
[1755863726385,0.51934449,112580.0,112570.0,0.20974475]
[1755863727177,0.18651744,112590.0,112580.0,0.17765144]
[1755863727387,0.53021049,112590.0,112580.0,0.33120144]
[1755863728084,0.53021049,112590.0,112580.0,0.39378153]
[1755863728316,0.53021049,112590.0,112580.0,0.33120144]
[1755863728897,0.53121049,112590.0,112580.0,0.33120144]
[1755863729101,0.53121049,112590.0,112580.0,0.15355]
[1755863729327,0.53121049,112590.0,112580.0,0.15577064]
[1755863729679,0.54511358,112590.0,112580.0,0.15577064]
[1755863729874,0.54511358,112590.0,112580.0,0.2047713]
[1755863730104,0.54511358,112590.0,112580.0,0.20255066]
[1755863731362,0.54511358,112590.0,112580.0,0.05103066]
[1755863731574,0.54511358,112590.0,112580.0,0.0532513]
[1755863733332,0.54511358,112590.0,112580.0,0.23090274]
[1755863733542,0.54511358,112590.0,112580.0,0.2286821]
[1755863734655,0.54511358,112590.0,112580.0,0.05103066]
[1755863734863,0.54511358,112590.0,112580.0,0.0532513]
[1755863736298,0.54511358,112590.0,112580.0,0.23090274]
[1755863736494,0.54511358,112590.0,112580.0,0.2286821]
[1755863736675,0.68237049,112590.0,112580.0,0.05103066]
[1755863736881,0.68237049,112590.0,112580.0,0.0532513]
[1755863737554,0.68237049,112590.0,112580.0,0.23090274]
[1755863737733,0.53121049,112590.0,112580.0,0.2286821]
[1755863737877,0.68237049,112590.0,112580.0,0.2286821]
[1755863738320,0.68237049,112590.0,112580.0,0.05103066]
[1755863738527,0.68237049,112590.0,112580.0,0.0532513]
[1755863738869,0.68237049,112590.0,112580.0,0.0562713]
[1755863739246,0.68237049,112590.0,112580.0,0.0532513]
[1755863739598,0.52621049,112590.0,112580.0,0.0532513]
[1755863739994,0.54011359,112590.0,112580.0,0.0532513]
[1755863741711,0.54011359,112590.0,112580.0,0.23090274]
[1755863741951,0.54011359,112590.0,112580.0,0.05103066]
[1755863742155,0.54011359,112590.0,112580.0,0.0532513]
[1755863742337,0.19842054,112590.0,112580.0,0.23090274]
[1755863742540,0.54011359,112590.0,112580.0,0.2286821]
[1755863745134,0.54011359,112590.0,112580.0,0.0532513]
[1755863745697,0.54317359,112590.0,112580.0,0.0512213]
[1755863748190,0.54317359,112590.0,112580.0,0.04900066]
[1755863748613,0.52927049,112590.0,112580.0,0.04900066]
[1755863749572,0.56340762,112590.0,112580.0,0.04900066]
[1755863749984,0.52927049,112590.0,112580.0,0.04900066]
[1755863751205,0.17765144,112580.0,112570.0,0.30470878]
[1755863751430,0.52137449,112580.0,112570.0,0.30685878]
[1755863751628,0.52137449,112580.0,112570.0,0.15354878]
[1755863751829,0.88002113,112580.0,112570.0,0.15354878]
[1755863752591,0.53832808,112580.0,112570.0,0.15354878]
[1755863752800,0.53527808,112580.0,112570.0,0.15354878]
[1755863753039,0.54664781,112580.0,112570.0,0.15454878]
[1755863753246,0.54664781,112580.0,112570.0,0.15669878]
[1755863753633,0.54664781,112580.0,112570.0,0.15454878]
[1755863753977,0.54969781,112580.0,112570.0,0.15454878]
[1755863755936,0.53579422,112580.0,112570.0,0.15454878]
[1755863757995,0.19410117,112580.0,112570.0,0.15454878]
[1755863758236,0.53579422,112580.0,112570.0,0.15454878]
[1755863758442,0.53274422,112580.0,112570.0,0.15454878]
[1755863759241,0.87748727,112580.0,112570.0,0.06766403]
[1755863759441,0.87748727,112580.0,112570.0,0.21882403]
[1755863759597,0.8913909,112580.0,112570.0,0.19211103]
[1755863759802,0.54969785,112580.0,112570.0,0.19211103]
[1755863762294,0.54664785,112580.0,112570.0,0.19211103]
[1755863762525,0.54664785,112580.0,112570.0,0.24126389]
[1755863762699,0.54664785,112580.0,112570.0,0.19426103]
[1755863763853,0.2049548,112580.0,112570.0,0.37501825]
[1755863764027,0.54664785,112580.0,112570.0,0.37501825]
[1755863765003,0.2029248,112580.0,112570.0,0.37501825]
[1755863765263,0.54461785,112580.0,112570.0,0.37501825]
[1755863765668,0.2029248,112580.0,112570.0,0.37501825]
[1755863766232,0.02527336,112580.0,112570.0,0.37501825]
[1755863767096,0.2029248,112580.0,112570.0,0.37501825]
[1755863767687,0.54461785,112580.0,112570.0,0.37501825]
[1755863769545,0.54461785,112580.0,112570.0,0.19735103]
[1755863769757,0.54461785,112580.0,112570.0,0.37501825]
[1755863771553,0.01390363,112580.0,112570.0,0.461903]
[1755863771761,0.01390363,112580.0,112570.0,0.80359605]
[1755863771962,0.19155507,112580.0,112570.0,0.461903]